[Event "MCR rapid mládeže 2023 U16"]
[Site "Harachov, Czech Republic"]
[Date "2023.09.09"]
[Round "4.35"]
[White "Strihavka, Petr"]
[Black "Zelenka, Tomas"]
[Result "1-0"]
[TimeControl "20min+5s/move"]
[WhiteElo "1205"]
[BlackElo "1457"]

1. e4 {[%clk 00:20:09]} {[%emt 00:09:57]} c5 {[%clk 00:20:08]} {[%emt
00:00:02]} 2. Nf3 {[%clk 00:20:12]} {[%emt 00:00:02]} Nc6 {[%clk 00:20:11]}
{[%emt 00:00:03]} 3. d4 {[%clk 00:20:15]} {[%emt 00:00:02]} cxd4 {[%clk
00:20:14]} {[%emt 00:00:02]} 4. Nxd4 {[%clk 00:20:16]} {[%emt 00:00:03]} g6
{[%clk 00:19:59]} {[%emt 00:00:21]} 5. Nc3 {[%clk 00:20:19]} {[%emt 00:00:02]}
Bg7 {[%clk 00:20:02]} {[%emt 00:00:02]} 6. Be3 {[%clk 00:20:22]} {[%emt
00:00:02]} Nf6 {[%clk 00:20:04]} {[%emt 00:00:02]} 7. Bc4 {[%clk 00:20:22]}
{[%emt 00:00:04]} O-O {[%clk 00:20:04]} {[%emt 00:00:06]} 8. h3 {[%clk
00:20:23]} {[%emt 00:00:04]} d6 {[%clk 00:19:58]} {[%emt 00:00:11]} 9. O-O
{[%clk 00:20:20]} {[%emt 00:00:08]} Qb6 {[%clk 00:18:45]} {[%emt 00:01:19]} 10.
Nb3 {[%clk 00:19:41]} {[%emt 00:00:43]} Qc7 {[%clk 00:18:23]} {[%emt 00:00:26]}
11. Be2 {[%clk 00:19:01]} {[%emt 00:00:45]} Be6 {[%clk 00:18:12]} {[%emt
00:00:17]} 12. Qd2 {[%clk 00:18:40]} {[%emt 00:00:25]} Rfd8 {[%clk 00:16:55]}
{[%emt 00:01:22]} 13. Bh6 {[%clk 00:18:28]} {[%emt 00:00:16]} d5 {[%clk
00:16:49]} {[%emt 00:00:13]} 14. exd5 {[%clk 00:17:58]} {[%emt 00:00:35]} Nxd5
{[%clk 00:16:50]} {[%emt 00:00:04]} 15. Bxg7 {[%clk 00:17:41]} {[%emt
00:00:23]} Kxg7 {[%clk 00:16:42]} {[%emt 00:00:13]} 16. Nd4 {[%clk 00:17:20]}
{[%emt 00:00:24]} Nxd4 {[%clk 00:16:30]} {[%emt 00:00:18]} 17. Qxd4+ {[%clk
00:17:20]} {[%emt 00:00:04]} Kg8 {[%clk 00:16:30]} {[%emt 00:00:06]} 18. Bf3
{[%clk 00:16:28]} {[%emt 00:00:57]} Nxc3 {[%clk 00:16:12]} {[%emt 00:00:23]} 19.
Qxc3 {[%clk 00:16:29]} {[%emt 00:00:03]} Qxc3 {[%clk 00:16:14]} {[%emt
00:00:04]} 20. bxc3 {[%clk 00:16:31]} {[%emt 00:00:03]} Rd2 {[%clk 00:15:53]}
{[%emt 00:00:25]} 21. Bxb7 {[%clk 00:16:32]} {[%emt 00:00:05]} Rb8 {[%clk
00:15:56]} {[%emt 00:00:01]} 22. Be4 {[%clk 00:16:26]} {[%emt 00:00:09]} Rb2
{[%clk 00:15:33]} {[%emt 00:00:30]} 23. a3 {[%clk 00:15:54]} Bf5 {[%clk
00:15:18]} {[%emt 00:00:57]} 24. Bxf5 {[%clk 00:15:27]} gxf5 {[%clk 00:15:22]}
{[%emt 00:00:34]} 25. c4 {[%clk 00:15:20]} {[%emt 00:00:12]} Rdxc2 {[%clk
00:15:23]} {[%emt 00:00:03]} 26. Rfc1 {[%clk 00:15:16]} {[%emt 00:00:10]} Rxf2
{[%clk 00:15:23]} {[%emt 00:00:04]} 27. c5 {[%clk 00:13:58]} {[%emt 00:01:24]}
Rxg2+ {[%clk 00:15:20]} {[%emt 00:00:08]} 28. Kf1 {[%clk 00:14:00]} {[%emt
00:00:02]} Rgc2 {[%clk 00:14:39]} {[%emt 00:00:45]} 29. c6 {[%clk 00:13:54]}
{[%emt 00:00:12]} Rxc1+ {[%clk 00:14:19]} {[%emt 00:00:26]} 30. Rxc1 {[%clk
00:13:57]} {[%emt 00:00:01]} Rb8 {[%clk 00:14:21]} {[%emt 00:00:03]} 31. Ke2
{[%clk 00:13:57]} {[%emt 00:00:05]} Rc8 {[%clk 00:14:24]} {[%emt 00:00:03]} 32.
Kd3 {[%clk 00:14:00]} {[%emt 00:00:02]} Kf8 {[%clk 00:14:24]} {[%emt 00:00:04]}
33. Kd4 {[%clk 00:13:51]} {[%emt 00:00:14]} Ke8 {[%clk 00:14:23]} {[%emt
00:00:06]} 34. Ke5 {[%clk 00:13:50]} {[%emt 00:00:07]} e6 {[%clk 00:13:48]}
{[%emt 00:00:39]} 35. Kd6 {[%clk 00:12:46]} {[%emt 00:01:10]} f4 {[%clk
00:13:25]} {[%emt 00:00:28]} 36. c7 {[%clk 00:12:44]} {[%emt 00:00:07]} e5
{[%clk 00:11:32]} {[%emt 00:01:58]} 37. Rb1 {[%clk 00:12:42]} {[%emt 00:00:07]}
Rxc7 {[%clk 00:10:16]} {[%emt 00:01:21]} 38. Rb8+ {[%emt 00:00:06]} 1-0

[Event "MCR rapid mládeže 2023 U16"]
[Site "Harachov, Czech Republic"]
[Date "2023.09.09"]
[Round "4.36"]
[White "Bartak, Tobias"]
[Black "Krivka, Lukas"]
[Result "1-0"]
[TimeControl "20min+5s/move"]
[WhiteElo "1259"]
[BlackElo "1104"]

1. e4 {[%clk 00:20:06]} {[%emt 00:00:03]} c6 {[%clk 00:20:03]} {[%emt
00:00:08]} 2. d4 {[%emt 00:00:10]} d5 {[%clk 00:19:57]} {[%emt 00:00:10]} 3.
exd5 {[%clk 00:19:59]} {[%emt 00:00:07]} cxd5 {[%clk 00:19:59]} {[%emt
00:00:03]} 4. c4 {[%clk 00:20:01]} {[%emt 00:00:03]} e6 {[%clk 00:19:58]}
{[%emt 00:00:06]} 5. Nc3 {[%clk 00:19:48]} {[%emt 00:00:18]} Nf6 {[%clk
00:19:24]} {[%emt 00:00:39]} 6. Bg5 {[%clk 00:19:23]} {[%emt 00:00:29]} Be7
{[%clk 00:19:20]} {[%emt 00:00:09]} 7. Nf3 {[%clk 00:18:56]} {[%emt 00:00:33]}
h6 {[%clk 00:19:10]} {[%emt 00:00:15]} 8. Bf4 {[%clk 00:18:43]} {[%emt
00:00:17]} Bd6 {[%clk 00:18:26]} {[%emt 00:00:50]} 9. Bxd6 {[%clk 00:18:11]}
{[%emt 00:00:37]} Qxd6 {[%clk 00:18:24]} {[%emt 00:00:06]} 10. c5 {[%clk
00:18:03]} {[%emt 00:00:12]} Qd8 {[%clk 00:17:39]} {[%emt 00:00:51]} 11. Bb5+
{[%clk 00:17:34]} {[%emt 00:00:34]} Bd7 {[%clk 00:17:06]} {[%emt 00:00:38]} 12.
Bxd7+ {[%clk 00:17:17]} {[%emt 00:00:22]} Qxd7 {[%clk 00:17:01]} {[%emt
00:00:10]} 13. O-O {[%clk 00:17:06]} {[%emt 00:00:16]} Nc6 {[%clk 00:17:03]}
{[%emt 00:00:04]} 14. Nb5 {[%clk 00:16:43]} {[%emt 00:00:28]} O-O {[%clk
00:16:48]} {[%emt 00:00:20]} 15. Qe2 {[%clk 00:15:40]} {[%emt 00:01:07]} a6
{[%clk 00:14:07]} {[%emt 00:02:47]} 16. Nd6 {[%clk 00:15:08]} {[%emt 00:00:36]}
Ne8 {[%clk 00:13:54]} {[%emt 00:00:19]} 17. Nxe8 {[%clk 00:14:39]} {[%emt
00:00:34]} Rfxe8 {[%clk 00:13:42]} {[%emt 00:00:17]} 18. Rfe1 {[%clk 00:13:52]}
{[%emt 00:00:50]} Qc7 {[%clk 00:12:36]} {[%emt 00:01:12]} 19. Qd2 {[%clk
00:12:40]} {[%emt 00:01:14]} Qa5 {[%clk 00:09:08]} {[%emt 00:03:36]} 20. Qxa5
{[%clk 00:11:49]} {[%emt 00:00:56]} Nxa5 {[%clk 00:09:09]} {[%emt 00:00:03]} 21.
b4 {[%clk 00:11:07]} {[%emt 00:00:47]} Nc4 {[%clk 00:06:41]} {[%emt 00:02:33]}
22. a4 {[%clk 00:10:10]} {[%emt 00:01:02]} Rac8 {[%clk 00:04:23]} {[%emt
00:02:24]} 23. b5 {[%clk 00:09:19]} {[%emt 00:00:56]} a5 {[%clk 00:03:59]}
{[%emt 00:00:28]} 24. Ne5 {[%clk 00:09:08]} {[%emt 00:00:16]} Nxe5 {[%clk
00:03:20]} {[%emt 00:00:45]} 25. Rxe5 {[%clk 00:09:10]} {[%emt 00:00:03]} f6
{[%clk 00:03:14]} {[%emt 00:00:10]} 26. Re2 {[%clk 00:08:51]} {[%emt 00:00:23]}
e5 {[%clk 00:03:05]} {[%emt 00:00:16]} 27. Rae1 {[%clk 00:08:52]} {[%emt
00:00:03]} Kf7 {[%clk 00:01:55]} {[%emt 00:01:16]} 28. dxe5 {[%clk 00:08:19]}
{[%emt 00:00:38]} fxe5 {[%clk 00:01:21]} {[%emt 00:00:38]} 29. Rxe5 {[%clk
00:08:06]} {[%emt 00:00:18]} Rxe5 {[%clk 00:01:20]} {[%emt 00:00:06]} 30. Rxe5
{[%clk 00:08:10]} {[%emt 00:00:02]} Rxc5 {[%clk 00:01:24]} {[%emt 00:00:01]} 31.
h3 {[%clk 00:08:13]} {[%emt 00:00:01]} Kf6 {[%clk 00:00:47]} {[%emt 00:00:42]}
32. Re3 {[%clk 00:07:55]} {[%emt 00:00:23]} Rc1+ {[%clk 00:00:49]} {[%emt
00:00:04]} 33. Kh2 {[%clk 00:07:56]} {[%emt 00:00:03]} Ra1 {[%clk 00:00:52]}
{[%emt 00:00:02]} 34. Rf3+ {[%clk 00:07:49]} {[%emt 00:00:12]} Ke6 {[%clk
00:00:47]} {[%emt 00:00:11]} 35. Re3+ {[%clk 00:07:51]} {[%emt 00:00:03]} Kf7
{[%clk 00:00:42]} {[%emt 00:00:10]} 36. Rf3+ {[%clk 00:07:51]} {[%emt
00:00:05]} Kg8 {[%clk 00:00:42]} {[%emt 00:00:04]} 37. Rf4 {[%clk 00:07:50]}
{[%emt 00:00:07]} g5 {[%clk 00:00:36]} {[%emt 00:00:11]} 38. Rd4 {[%clk
00:07:48]} {[%emt 00:00:07]} Ra2 {[%clk 00:00:31]} {[%emt 00:00:09]} 39. f3
{[%clk 00:07:38]} {[%emt 00:00:15]} Kf7 {[%clk 00:00:23]} {[%emt 00:00:14]} 40.
Rxd5 {[%clk 00:07:37]} {[%emt 00:00:06]} Rxa4 {[%clk 00:00:27]} {[%emt
00:00:01]} 41. Rd7+ {[%clk 00:07:41]} {[%emt 00:00:01]} Kg6 {[%clk 00:00:27]}
{[%emt 00:00:04]} 42. Rxb7 {[%clk 00:07:44]} {[%emt 00:00:02]} Rb4 {[%clk
00:00:25]} {[%emt 00:00:07]} 43. b6 {[%clk 00:07:39]} {[%emt 00:00:10]} a4
{[%clk 00:00:22]} {[%emt 00:00:10]} 44. Ra7 {[%clk 00:07:41]} {[%emt 00:00:02]}
Rxb6 {[%clk 00:00:21]} {[%emt 00:00:06]} 45. Rxa4 {[%clk 00:07:45]} {[%emt
00:00:01]} h5 {[%clk 00:00:21]} {[%emt 00:00:04]} 46. h4 {[%clk 00:07:17]}
{[%emt 00:00:33]} Rc6 {[%clk 00:00:09]} {[%emt 00:00:17]} 47. Kg3 {[%clk
00:06:44]} {[%emt 00:00:38]} gxh4+ {[%clk 00:00:10]} {[%emt 00:00:05]} 48. Kxh4
{[%clk 00:06:45]} {[%emt 00:00:03]} Rf6 {[%clk 00:00:13]} {[%emt 00:00:03]} 49.
Ra5 {[%clk 00:06:20]} {[%emt 00:00:30]} Rf4+ {[%clk 00:00:09]} {[%emt
00:00:09]} 50. g4 {[%clk 00:06:18]} {[%emt 00:00:06]} hxg4 {[%clk 00:00:07]}
{[%emt 00:00:07]} 51. Rg5+ {[%clk 00:06:06]} {[%emt 00:00:18]} Kf6 {[%clk
00:00:00]} {[%emt 00:00:06]} 1-0

[Event "MCR rapid mládeže 2023 U16"]
[Site "Harachov, Czech Republic"]
[Date "2023.09.09"]
[Round "4.37"]
[White "Martikanova, Amalie"]
[Black "Hamernikova, Iris"]
[Result "1-0"]
[TimeControl "20min+5s/move"]
[WhiteElo "1107"]
[BlackElo "1387"]

1. e4 {[%clk 00:20:09]} {[%emt 00:00:01]} e5 {[%clk 00:20:09]} {[%emt
00:00:02]} 2. f4 {[%clk 00:20:13]} exf4 {[%clk 00:20:13]} {[%emt 00:00:02]} 3.
Nf3 {[%clk 00:20:16]} {[%emt 00:00:01]} Nc6 {[%clk 00:20:17]} {[%emt 00:00:01]}
4. d4 {[%clk 00:20:20]} {[%emt 00:00:02]} Nf6 {[%clk 00:20:19]} {[%emt
00:00:02]} 5. e5 {[%emt 00:00:03]} Nd5 {[%clk 00:20:22]} {[%emt 00:00:01]} 6.
Bc4 {[%clk 00:20:21]} {[%emt 00:00:07]} Nb6 {[%clk 00:20:21]} {[%emt 00:00:06]}
7. Bb3 {[%clk 00:20:21]} {[%emt 00:00:04]} d6 {[%clk 00:20:14]} {[%emt
00:00:12]} 8. Bxf4 {[%clk 00:20:19]} {[%emt 00:00:08]} dxe5 {[%clk 00:20:17]}
{[%emt 00:00:02]} 9. Bxe5 {[%clk 00:20:15]} {[%emt 00:00:08]} Nxe5 {[%clk
00:20:20]} {[%emt 00:00:03]} 10. Nxe5 {[%clk 00:20:18]} {[%emt 00:00:02]} Bd6
{[%clk 00:20:21]} {[%emt 00:00:04]} 11. Nxf7 {[%clk 00:20:09]} {[%emt
00:00:13]} Qe7+ {[%clk 00:20:12]} {[%emt 00:00:15]} 12. Qe2 {[%clk 00:20:10]}
{[%emt 00:00:04]} Qxe2+ {[%clk 00:20:11]} {[%emt 00:00:05]} 13. Kxe2 {[%clk
00:20:14]} {[%emt 00:00:02]} Rf8 {[%clk 00:20:12]} {[%emt 00:00:04]} 14. Nxd6+
{[%clk 00:20:07]} {[%emt 00:00:12]} cxd6 {[%clk 00:20:15]} {[%emt 00:00:02]} 15.
Re1 {[%clk 00:20:03]} {[%emt 00:00:09]} Bg4+ {[%clk 00:20:12]} {[%emt
00:00:08]} 16. Kd2+ {[%clk 00:20:05]} {[%emt 00:00:02]} Kd7 {[%clk 00:20:16]}
{[%emt 00:00:02]} 17. Kd3 {[%clk 00:19:10]} {[%emt 00:00:54]} Rac8 {[%clk
00:20:16]} {[%emt 00:00:10]} 18. c4 {[%clk 00:18:46]} {[%emt 00:00:30]} Bf5+
{[%clk 00:20:03]} {[%emt 00:00:18]} 19. Kc3 {[%clk 00:18:44]} {[%emt 00:00:04]}
Nd5+ {[%clk 00:19:59]} {[%emt 00:00:11]} 20. Kd2 {[%clk 00:18:39]} {[%emt
00:00:07]} Nb4 {[%clk 00:20:02]} {[%emt 00:00:05]} 21. Ba4+ {[%clk 00:17:25]}
{[%emt 00:01:19]} Kc7 {[%clk 00:19:56]} {[%emt 00:00:11]} 22. Re3 {[%clk
00:16:01]} {[%emt 00:01:27]} Bg6 {[%clk 00:18:45]} {[%emt 00:01:17]} 23. Na3
{[%clk 00:14:37]} {[%emt 00:01:30]} a6 {[%clk 00:18:38]} {[%emt 00:00:13]} 24.
d5 {[%clk 00:12:58]} {[%emt 00:01:44]} Rf2+ {[%clk 00:18:34]} {[%emt 00:00:08]}
25. Kc3 {[%clk 00:12:17]} {[%emt 00:00:44]} a5 {[%clk 00:18:25]} {[%emt
00:00:16]} 26. Nb5+ {[%clk 00:11:59]} {[%emt 00:00:23]} Kb6 {[%clk 00:18:12]}
{[%emt 00:00:15]} 27. Nxd6 {[%clk 00:11:33]} {[%emt 00:00:34]} Rc2+ {[%clk
00:18:02]} {[%emt 00:00:15]} 28. Bxc2 {[%clk 00:11:28]} {[%emt 00:00:10]} Rc7
{[%clk 00:17:49]} {[%emt 00:00:18]} 29. Be4 {[%clk 00:10:43]} {[%emt 00:00:46]}
Nxd5+ {[%clk 00:17:37]} {[%emt 00:00:22]} 30. Bxd5 {[%clk 00:10:38]} {[%emt
00:00:09]} Rd7 {[%clk 00:17:31]} {[%emt 00:00:12]} 31. Re6 {[%clk 00:10:22]}
{[%emt 00:00:19]} Kc5 {[%clk 00:17:24]} {[%emt 00:00:13]} 32. Nxb7+ {[%clk
00:10:18]} {[%emt 00:00:08]} 1-0

[Event "MCR rapid mládeže 2023 U16"]
[Site "Harachov, Czech Republic"]
[Date "2023.09.09"]
[Round "4.39"]
[White "Tykalova, Barbora"]
[Black "Zidkova, Agnes"]
[Result "1-0"]
[TimeControl "20min+5s/move"]
[WhiteElo "1121"]
[BlackElo "1045"]

1. e4 {[%clk 00:20:07]} {[%emt 00:00:02]} e6 {[%clk 00:20:08]} {[%emt
00:00:03]} 2. d4 {[%clk 00:19:54]} {[%emt 00:00:18]} d5 {[%clk 00:20:11]}
{[%emt 00:00:02]} 3. exd5 {[%clk 00:19:46]} {[%emt 00:00:13]} exd5 {[%clk
00:20:13]} {[%emt 00:00:04]} 4. c4 {[%clk 00:19:30]} {[%emt 00:00:20]} c6
{[%clk 00:19:58]} {[%emt 00:00:20]} 5. Nc3 {[%clk 00:19:22]} {[%emt 00:00:13]}
Nf6 {[%clk 00:19:47]} {[%emt 00:00:16]} 6. Bg5 {[%clk 00:18:54]} {[%emt
00:00:32]} Be7 {[%clk 00:19:28]} {[%emt 00:00:25]} 7. Nf3 {[%clk 00:18:10]}
{[%emt 00:00:49]} Bf5 {[%clk 00:19:09]} {[%emt 00:00:24]} 8. Qb3 {[%clk
00:17:44]} {[%emt 00:00:31]} b6 {[%clk 00:17:57]} {[%emt 00:01:16]} 9. Bxf6
{[%clk 00:17:20]} {[%emt 00:00:28]} Bxf6 {[%clk 00:17:55]} {[%emt 00:00:09]} 10.
cxd5 {[%clk 00:17:10]} {[%emt 00:00:14]} O-O {[%clk 00:17:03]} {[%emt
00:00:52]} 11. Be2 {[%clk 00:16:42]} {[%emt 00:00:36]} Re8 {[%clk 00:16:44]}
{[%emt 00:00:25]} 12. O-O {[%clk 00:16:26]} {[%emt 00:00:22]} cxd5 {[%clk
00:15:44]} {[%emt 00:01:06]} 13. Qxd5 {[%clk 00:16:12]} {[%emt 00:00:19]} Qxd5
{[%clk 00:15:41]} {[%emt 00:00:08]} 14. Nxd5 {[%clk 00:16:01]} {[%emt
00:00:16]} Bd8 {[%clk 00:14:14]} {[%emt 00:01:30]} 15. Bb5 {[%clk 00:15:23]}
{[%emt 00:00:41]} Bd7 {[%clk 00:13:27]} {[%emt 00:00:55]} 16. Bc4 {[%clk
00:14:47]} {[%emt 00:00:36]} Nc6 {[%clk 00:12:28]} {[%emt 00:01:09]} 17. Ng5
{[%clk 00:13:52]} {[%emt 00:01:00]} Rc8 {[%clk 00:11:52]} {[%emt 00:00:41]} 18.
Nxb6 {[%clk 00:13:15]} {[%emt 00:00:44]} Bxb6 {[%clk 00:11:00]} {[%emt
00:00:56]} 19. Bxf7+ {[%clk 00:13:05]} {[%emt 00:00:14]} Kh8 {[%clk 00:10:51]}
{[%emt 00:00:14]} 20. Bxe8 {[%clk 00:12:47]} {[%emt 00:00:23]} Rxe8 {[%clk
00:10:53]} {[%emt 00:00:03]} 21. Nf7+ {[%clk 00:12:19]} {[%emt 00:00:29]} Kg8
{[%clk 00:10:44]} {[%emt 00:00:17]} 22. Nd6 {[%clk 00:11:50]} {[%emt 00:00:34]}
Re2 {[%clk 00:10:08]} {[%emt 00:00:41]} 23. d5 {[%clk 00:11:24]} {[%emt
00:00:32]} Ne7 {[%clk 00:09:58]} {[%emt 00:00:15]} 24. Nc4 {[%clk 00:09:54]}
{[%emt 00:01:34]} Nxd5 {[%clk 00:09:27]} {[%emt 00:00:36]} 25. Rad1 {[%clk
00:09:39]} {[%emt 00:00:20]} Be6 {[%clk 00:08:55]} {[%emt 00:00:39]} 26. Nxb6
{[%clk 00:09:23]} {[%emt 00:00:20]} Nxb6 {[%clk 00:08:42]} {[%emt 00:00:16]} 27.
Rfe1 {[%clk 00:09:15]} {[%emt 00:00:12]} Rxe1+ {[%clk 00:08:24]} {[%emt
00:00:25]} 28. Rxe1 {[%clk 00:08:55]} {[%emt 00:00:25]} Kf7 {[%clk 00:08:11]}
{[%emt 00:00:19]} 29. b3 {[%clk 00:08:42]} {[%emt 00:00:19]} Nd5 {[%clk
00:07:27]} {[%emt 00:00:49]} 30. f3 {[%clk 00:06:35]} {[%emt 00:02:10]} Nc3
{[%clk 00:07:10]} {[%emt 00:00:23]} 31. Kf2 {[%clk 00:06:06]} {[%emt 00:00:33]}
Nxa2 {[%clk 00:06:47]} {[%emt 00:00:29]} 32. Re2 {[%clk 00:05:45]} {[%emt
00:00:22]} Nc3 {[%clk 00:06:42]} {[%emt 00:00:14]} 33. Rc2 {[%clk 00:05:29]}
{[%emt 00:00:15]} Nb5 {[%clk 00:06:25]} {[%emt 00:00:27]} 34. Rc5 {[%clk
00:04:50]} {[%emt 00:00:42]} a6 {[%clk 00:06:04]} {[%emt 00:00:29]} 35. Rc6
{[%clk 00:04:29]} {[%emt 00:00:23]} a5 {[%clk 00:05:40]} {[%emt 00:00:32]} 36.
Ra6 {[%clk 00:04:28]} {[%emt 00:00:05]} Bxb3 {[%clk 00:05:23]} {[%emt
00:00:23]} 37. Rxa5 {[%clk 00:04:31]} {[%emt 00:00:03]} Nd6 {[%clk 00:05:03]}
{[%emt 00:00:22]} 38. Ra3 {[%clk 00:04:25]} {[%emt 00:00:13]} Be6 {[%clk
00:04:43]} {[%emt 00:00:25]} 39. Ra7+ {[%clk 00:04:24]} {[%emt 00:00:05]} Kf6
{[%clk 00:04:38]} {[%emt 00:00:10]} 40. Ke3 {[%clk 00:04:19]} {[%emt 00:00:11]}
Nb5 {[%clk 00:04:15]} {[%emt 00:00:28]} 41. Ra5 {[%clk 00:04:01]} {[%emt
00:00:19]} Nd6 {[%clk 00:04:14]} {[%emt 00:00:09]} 42. Kd4 {[%clk 00:03:58]}
{[%emt 00:00:07]} Nb7 {[%clk 00:03:55]} {[%emt 00:00:25]} 43. Ra6 {[%clk
00:03:57]} {[%emt 00:00:06]} Nd8 {[%clk 00:03:33]} {[%emt 00:00:26]} 44. g4
{[%clk 00:03:51]} {[%emt 00:00:12]} Ke7 {[%clk 00:03:24]} {[%emt 00:00:13]} 45.
Ra7+ {[%clk 00:03:53]} {[%emt 00:00:04]} Kf6 {[%clk 00:03:23]} {[%emt
00:00:06]} 46. Ra6 {[%clk 00:03:51]} {[%emt 00:00:07]} Ke7 {[%clk 00:03:27]}
{[%emt 00:00:01]} 47. Ke5 {[%clk 00:03:37]} {[%emt 00:00:18]} Nf7+ {[%clk
00:03:05]} {[%emt 00:00:27]} 48. Kd4 {[%clk 00:03:37]} {[%emt 00:00:05]} Nd6
{[%clk 00:02:43]} {[%emt 00:00:28]} 49. g5 {[%clk 00:03:22]} {[%emt 00:00:18]}
Nb5+ {[%clk 00:02:30]} {[%emt 00:00:20]} 50. Kc5 {[%clk 00:03:13]} {[%emt
00:00:10]} Nc7 {[%clk 00:02:32]} {[%emt 00:00:07]} 51. Ra7 {[%clk 00:03:15]}
{[%emt 00:00:02]} Kd7 {[%clk 00:02:23]} {[%emt 00:00:14]} 52. Kb6 {[%clk
00:03:15]} {[%emt 00:00:06]} Bd5 {[%clk 00:02:11]} {[%emt 00:00:17]} 53. Rxc7+
{[%clk 00:03:17]} {[%emt 00:00:03]} Ke6 {[%clk 00:02:14]} {[%emt 00:00:02]} 54.
Rxg7 {[%clk 00:03:17]} {[%emt 00:00:04]} Bxf3 {[%clk 00:02:17]} {[%emt
00:00:03]} 55. Rxh7 {[%clk 00:03:19]} {[%emt 00:00:03]} Be4 {[%clk 00:02:10]}
{[%emt 00:00:12]} 56. Rh6 {[%clk 00:03:22]} {[%emt 00:00:01]} Kf5 {[%clk
00:02:14]} {[%emt 00:00:02]} 57. h4 {[%clk 00:03:20]} {[%emt 00:00:06]} Bd5
{[%clk 00:02:03]} {[%emt 00:00:16]} 58. Rf6+ {[%clk 00:03:22]} {[%emt
00:00:03]} Ke5 {[%clk 00:01:56]} {[%emt 00:00:12]} 59. h5 {[%clk 00:03:23]}
{[%emt 00:00:04]} Be4 {[%clk 00:01:52]} {[%emt 00:00:09]} 60. h6 {[%clk
00:03:27]} {[%emt 00:00:02]} Bd3 {[%clk 00:01:22]} {[%emt 00:00:35]} 61. Rf3
{[%clk 00:03:20]} {[%emt 00:00:11]} Be4 {[%clk 00:01:17]} {[%emt 00:00:10]} 62.
Re3 {[%clk 00:03:23]} {[%emt 00:00:02]} Kf5 {[%clk 00:01:11]} {[%emt 00:00:12]}
63. h7 {[%clk 00:03:16]} {[%emt 00:00:12]} Kxg5 {[%clk 00:00:40]} {[%emt
00:00:36]} 64. h8=Q {[%clk 00:03:12]} {[%emt 00:00:10]} Kf4 {[%clk 00:00:40]}
{[%emt 00:00:03]} 65. Rxe4+ {[%clk 00:03:14]} {[%emt 00:00:04]} Kxe4 {[%clk
00:00:43]} {[%emt 00:00:01]} 66. Qf6 {[%clk 00:03:16]} {[%emt 00:00:04]} Ke3
{[%clk 00:00:41]} {[%emt 00:00:08]} 67. Qf5 {[%clk 00:03:19]} {[%emt 00:00:01]}
Kd4 {[%clk 00:00:42]} {[%emt 00:00:04]} 68. Kb5 {[%clk 00:03:22]} {[%emt
00:00:02]} Kc3 {[%clk 00:00:42]} {[%emt 00:00:04]} 69. Qd5 {[%clk 00:03:26]}
{[%emt 00:00:02]} Kc2 {[%clk 00:00:43]} {[%emt 00:00:04]} 70. Qd4 {[%clk
00:03:28]} {[%emt 00:00:02]} Kb3 {[%clk 00:00:44]} {[%emt 00:00:05]} 71. Qc4+
{[%clk 00:03:32]} {[%emt 00:00:01]} Kb2 {[%clk 00:00:47]} {[%emt 00:00:02]} 72.
Kb4 {[%clk 00:03:34]} {[%emt 00:00:03]} Kb1 {[%clk 00:00:39]} {[%emt 00:00:13]}
73. Ka3 {[%clk 00:03:35]} {[%emt 00:00:03]} Ka1 {[%clk 00:00:40]} {[%emt
00:00:04]} 74. Qc1# {[%emt 00:00:02]} 1-0

[Event "MCR rapid mládeže 2023 U16"]
[Site "Harachov, Czech Republic"]
[Date "2023.09.09"]
[Round "4.40"]
[White "Zadrapova, Gabriela"]
[Black "Chmelova, Klara"]
[Result "1-0"]
[TimeControl "20min+5s/move"]
[WhiteElo "1206"]
[BlackElo "1145"]

1. e4 {[%clk 00:20:07]} {[%emt 00:00:02]} c5 {[%clk 00:20:08]} {[%emt
00:00:02]} 2. Nf3 {[%clk 00:20:07]} {[%emt 00:00:05]} Nc6 {[%clk 00:20:12]}
{[%emt 00:00:02]} 3. Nc3 {[%clk 00:19:27]} {[%emt 00:00:44]} g6 {[%clk
00:20:10]} {[%emt 00:00:07]} 4. Bc4 {[%clk 00:18:49]} {[%emt 00:00:43]} Bg7
{[%clk 00:20:00]} {[%emt 00:00:14]} 5. O-O {[%clk 00:18:43]} {[%emt 00:00:13]}
b6 {[%clk 00:19:13]} {[%emt 00:00:52]} 6. d3 {[%clk 00:17:38]} {[%emt
00:01:09]} Bb7 {[%clk 00:18:44]} {[%emt 00:00:31]} 7. Be3 {[%clk 00:17:24]}
{[%emt 00:00:20]} e6 {[%clk 00:18:32]} {[%emt 00:00:19]} 8. d4 {[%clk
00:16:42]} {[%emt 00:00:47]} cxd4 {[%clk 00:18:24]} {[%emt 00:00:13]} 9. Nxd4
{[%clk 00:16:25]} {[%emt 00:00:23]} Nf6 {[%clk 00:17:58]} {[%emt 00:00:29]} 10.
Nxc6 {[%clk 00:15:57]} {[%emt 00:00:35]} Bxc6 {[%clk 00:17:53]} {[%emt
00:00:09]} 11. e5 {[%clk 00:15:43]} {[%emt 00:00:19]} Nh5 {[%clk 00:16:50]}
{[%emt 00:01:06]} 12. f4 {[%clk 00:14:55]} {[%emt 00:00:55]} O-O {[%clk
00:16:25]} {[%emt 00:00:30]} 13. Nb5 {[%clk 00:12:20]} {[%emt 00:02:41]} a6
{[%clk 00:12:41]} {[%emt 00:03:49]} 14. Nd4 {[%clk 00:11:38]} {[%emt 00:00:46]}
Be4 {[%clk 00:11:33]} {[%emt 00:01:13]} 15. g4 {[%clk 00:10:24]} {[%emt
00:01:20]} Qb8 {[%clk 00:11:03]} {[%emt 00:00:34]} 16. gxh5 {[%clk 00:09:35]}
{[%emt 00:00:55]} gxh5 {[%clk 00:10:54]} {[%emt 00:00:14]} 17. Qxh5 {[%clk
00:08:52]} {[%emt 00:00:47]} b5 {[%clk 00:09:21]} {[%emt 00:01:38]} 18. Bd3
{[%clk 00:08:32]} {[%emt 00:00:25]} Bxd3 {[%clk 00:09:15]} {[%emt 00:00:11]} 19.
cxd3 {[%clk 00:08:28]} {[%emt 00:00:09]} Qb6 {[%clk 00:08:13]} {[%emt
00:01:00]} 20. Bf2 {[%clk 00:08:00]} {[%emt 00:00:39]} d6 {[%clk 00:08:00]}
{[%emt 00:00:19]} 21. Qg5 {[%clk 00:07:43]} {[%emt 00:00:20]} dxe5 {[%clk
00:07:59]} {[%emt 00:00:08]} 22. Nf5 {[%clk 00:07:35]} {[%emt 00:00:12]} Qxf2+
{[%clk 00:07:29]} {[%emt 00:00:36]} 23. Rxf2 {[%clk 00:07:34]} {[%emt
00:00:05]} exf5 {[%clk 00:07:32]} {[%emt 00:00:03]} 24. Rg2 {[%clk 00:07:34]}
{[%emt 00:00:05]} f6 {[%clk 00:07:15]} {[%emt 00:00:23]} 25. Qxg7# {[%emt
00:00:03]} 1-0